bitfinex-derivatives/quotes_BTCF0:USTF0_20241203
["timestamp","ask_amount","ask_price","bid_price","bid_amount"]
[1733234192420,0.3608,94056.0,94014.0,0.3608]
[1733234192421,0.05317,94031.0,94025.0,0.053173]
[1733234192625,0.053167,94038.0,94030.0,0.3608]
[1733234192825,0.053169,94033.0,94031.0,0.3608]
[1733234193532,0.053169,94033.0,94022.0,0.3608]
[1733234193533,0.053175,94023.0,94022.0,0.3608]
[1733234193733,0.053179,94015.0,94014.0,0.3608]
[1733234193929,0.053188,94000.0,93999.0,0.00159573]
[1733234194638,0.05319,93995.0,93994.0,0.72216]
[1733234194829,0.05319,93995.0,93994.0,0.7216]
[1733234195438,0.053197,93984.0,93983.0,0.00012887]
[1733234195645,0.413997,93984.0,93983.0,0.00012887]
[1733234196348,0.053197,93984.0,93983.0,0.00012887]
[1733234196851,0.075,93994.0,93983.0,0.00012887]
[1733234197044,0.00159663,94003.0,93989.0,0.3608]
[1733234197643,0.053193,93991.0,93989.0,0.3608]
[1733234197947,0.05319,93997.0,93989.0,0.3608]
[1733234198139,0.00159663,94003.0,94002.0,0.053187]
[1733234198341,0.08,94031.0,94002.0,0.3608]
[1733234198541,0.08,94031.0,93993.0,0.19590045]
[1733234198542,0.053172,94027.0,94026.0,0.3608]
[1733234199447,0.00093,94033.0,94026.0,0.3608]
[1733234199641,0.053172,94028.0,94027.0,0.3608]
[1733234200243,0.053176,94020.0,94019.0,0.3608]
[1733234200451,0.00093,94033.0,94019.0,0.3608]
[1733234200657,0.05317,94030.0,94029.0,0.3608]
[1733234201351,0.00093,94033.0,94019.0,0.3608]
[1733234201652,0.053171,94029.0,94028.0,0.3608]
[1733234202148,0.00093,94033.0,94015.0,0.3608]
[1733234202348,0.053178,94017.0,94015.0,0.3608]
[1733234202551,0.00093,94033.0,94015.0,0.3608]
[1733234202750,0.00093,94033.0,94014.0,0.02128394]
[1733234202751,0.00093,94033.0,94024.0,0.3608]
[1733234203052,0.054099,94033.0,94032.0,0.3608]
[1733234203954,0.00093,94033.0,94032.0,0.3608]
[1733234204160,0.054099,94033.0,94032.0,0.3608]
[1733234205352,0.053172,94027.0,94014.0,0.02128394]
[1733234205547,0.053184,94006.0,94005.0,0.00159552]
[1733234205746,0.053184,94006.0,94005.0,5.2e-07]
[1733234206154,0.053184,94006.0,93984.0,0.0106]
[1733234206155,0.053196,93985.0,93984.0,0.0106]
[1733234206353,0.053196,93985.0,93983.0,0.00012887]
[1733234207950,0.053196,93985.0,93983.0,8.7e-07]
[1733234208149,0.0779,93984.0,93983.0,8.7e-07]
[1733234209859,0.053196,93985.0,93983.0,8.7e-07]
[1733234210360,0.053196,93985.0,93984.0,0.3608]
[1733234211046,0.053196,93985.0,93983.0,8.7e-07]
[1733234212959,0.3608,93996.0,93983.0,8.7e-07]
[1733234213149,0.050496,93984.0,93983.0,8.7e-07]
[1733234214658,0.053189,93997.0,93983.0,8.7e-07]
[1733234214863,0.053196,93984.0,93983.0,8.7e-07]
[1733234215358,0.053196,93984.0,93983.0,0.19068404]
[1733234215668,0.053196,93984.0,93983.0,8.7e-07]
[1733234216951,0.053196,93984.0,93978.0,0.13356122]
[1733234217151,0.0773,93992.0,93966.0,0.25443367]
[1733234217365,0.0773,93992.0,93960.0,0.32334026]
[1733234217366,0.053205,93968.0,93960.0,0.31804026]
[1733234217860,0.053205,93968.0,93959.0,0.0791]
[1733234217861,0.053205,93968.0,93965.0,0.3608]
[1733234218061,0.053205,93968.0,93967.0,8.388e-05]
[1733234218648,0.053205,93968.0,93961.0,0.25368134]
[1733234218649,0.053208,93963.0,93962.0,0.25368134]
[1733234218953,0.053205,93968.0,93948.0,0.37884931]
[1733234218954,0.053205,93968.0,93954.0,0.2536886]
[1733234219153,0.053214,93953.0,93952.0,0.2536886]
[1733234219359,0.053214,93953.0,93946.0,0.67884026]
[1733234219360,0.053206,93966.0,93946.0,0.36136]
[1733234219658,0.414002,93974.0,93946.0,0.36136]
[1733234219659,0.414002,93974.0,93948.0,0.25367424]
[1733234219858,0.053203,93973.0,93947.0,8.205e-05]
[1733234220078,0.053216,93949.0,93947.0,5e-08]
[1733234220364,0.053216,93949.0,93931.0,0.19982124]
[1733234220365,0.053217,93947.0,93931.0,0.19982124]
[1733234220565,0.053228,93928.0,93927.0,0.00159679]
[1733234221271,0.3608,93932.0,93927.0,0.0001274]
[1733234221450,0.053226,93933.0,93927.0,0.0001274]
[1733234221656,0.053226,93933.0,93927.0,4e-07]
[1733234221657,0.414029,93928.0,93927.0,4e-07]
[1733234222852,0.57339421,93928.0,93927.0,4e-07]
[1733234223457,0.79171421,93928.0,93927.0,4e-07]
[1733234223761,0.053242,93905.0,93904.0,4e-07]
[1733234223959,0.053244,93901.0,93899.0,0.0131454]
[1733234224160,0.053248,93894.0,93893.0,0.31804026]
[1733234224660,0.053251,93890.0,93889.0,0.0008824]
[1733234224870,0.053251,93890.0,93889.0,0.00100842]
[1733234225458,0.053251,93890.0,93889.0,4.2e-07]
[1733234226660,0.053258,93881.0,93880.0,5e-08]
[1733234226959,0.414058,93881.0,93880.0,5e-08]
[1733234227561,0.414058,93881.0,93880.0,0.00011158]
[1733234228159,0.414058,93881.0,93880.0,5.8e-07]
[1733234230460,0.0027,93893.0,93880.0,5.8e-07]
[1733234230461,0.053257,93885.0,93880.0,5.8e-07]
[1733234230653,0.053258,93881.0,93880.0,5.8e-07]
[1733234230862,0.3608,93888.0,93880.0,5.8e-07]
[1733234231059,0.3608,93888.0,93880.0,0.00138837]
[1733234231257,0.053259,93881.0,93880.0,0.00138837]
[1733234232860,0.269699,93881.0,93880.0,0.00138837]
[1733234233459,0.053264,93872.0,93871.0,0.0027]
[1733234233667,0.053264,93872.0,93862.0,0.0027]
[1733234233668,0.053269,93863.0,93862.0,0.0027]
[1733234233858,0.32174761,93863.0,93857.0,0.0027]
[1733234234061,0.053277,93849.0,93848.0,0.0027]
[1733234234266,0.053277,93849.0,93834.0,0.3608]
[1733234234267,0.3608,93849.0,93839.0,0.0027]
[1733234234472,0.053279,93846.0,93840.0,8.458e-05]
[1733234234667,0.3608,93852.0,93840.0,8.458e-05]
[1733234234862,0.053278,93848.0,93840.0,8.458e-05]
[1733234235170,0.053281,93841.0,93840.0,8.458e-05]
[1733234235575,0.21648,93841.0,93840.0,8.458e-05]
[1733234235867,0.269761,93841.0,93840.0,8.458e-05]
[1733234236685,0.269761,93841.0,93840.0,5.8e-07]
[1733234236973,0.29913419,93841.0,93840.0,5.8e-07]
[1733234238378,0.65993419,93841.0,93840.0,5.8e-07]
[1733234238572,0.08265419,93841.0,93840.0,5.8e-07]
[1733234241066,0.08265419,93841.0,93831.0,5.8e-07]
[1733234241067,0.053286,93832.0,93831.0,5.8e-07]
[1733234241464,0.053286,93832.0,93817.0,0.3608]
[1733234241465,0.053294,93818.0,93817.0,0.3608]
[1733234242072,0.0533,93807.0,93806.0,0.3608]
[1733234242278,0.0533,93807.0,93795.0,0.3608]
[1733234242279,0.053303,93801.0,93795.0,0.3608]
[1733234242480,0.053303,93801.0,93778.0,0.053316]
[1733234242481,0.053303,93801.0,93800.0,0.10011487]
[1733234242666,0.414103,93801.0,93800.0,0.10011487]
[1733234242862,0.3608,93801.0,93785.0,0.2608]
[1733234243067,0.3608,93801.0,93777.0,0.0784]
[1733234243276,0.3608,93801.0,93784.0,0.3608]
[1733234243476,0.0053,93806.0,93797.0,0.3608]
[1733234243673,0.0053,93815.0,93806.0,0.053301]
[1733234243875,0.2166,93816.0,93807.0,9.866e-05]
[1733234244472,0.053301,93808.0,93807.0,9.866e-05]
[1733234244672,0.04590715,93816.0,93780.0,0.30185316]
[1733234244867,0.3608,93795.0,93791.0,0.05331]
[1733234245071,0.3608,93795.0,93783.0,0.053315]
[1733234245267,0.3608,93795.0,93777.0,0.0784]
[1733234245268,0.3608,93787.0,93785.0,0.053314]
[1733234245473,0.3608,93787.0,93786.0,0.01333234]
[1733234245474,0.36076,93787.0,93786.0,0.01333234]
[1733234245678,0.053313,93787.0,93786.0,0.01333234]
[1733234245981,0.414113,93787.0,93786.0,0.0001318]
[1733234246175,0.414113,93787.0,93786.0,0.01346482]
[1733234246383,0.414113,93787.0,93786.0,0.01346479]
[1733234247076,0.414113,93787.0,93786.0,0.0001318]
[1733234247385,0.414113,93787.0,93786.0,0.46020969]
[1733234247585,0.3608,93787.0,93786.0,0.0001318]
[1733234247966,0.414113,93787.0,93786.0,0.0001318]
[1733234248780,0.19006037,93787.0,93786.0,0.0001318]
[1733234249077,0.0009,93787.0,93786.0,0.0001318]
[1733234249268,0.0009,93787.0,93786.0,0.44093616]
[1733234249473,0.0009,93787.0,93786.0,0.96632067]
[1733234249676,0.0009,93787.0,93786.0,0.97965638]
[1733234249981,0.053312,93788.0,93786.0,1.00381227]
[1733234250191,0.053312,93788.0,93787.0,0.64357611]
[1733234250476,0.053312,93788.0,93787.0,0.11536882]
[1733234250785,0.269952,93788.0,93787.0,0.4541392]
[1733234250984,0.269952,93788.0,93787.0,0.3410372]
[1733234251777,0.269952,93788.0,93786.0,0.0001318]
[1733234252479,0.053319,93776.0,93774.0,0.30290996]
[1733234252679,0.29129225,93788.0,93755.0,0.44093356]
[1733234252680,0.3608,93781.0,93757.0,0.3608]
[1733234252884,0.053323,93768.0,93763.0,0.545778]
[1733234253076,0.053319,93775.0,93766.0,0.3608]
[1733234253379,0.23798025,93788.0,93774.0,0.3608]
[1733234253380,0.0053,93785.0,93774.0,0.3608]
[1733234253572,0.0053,93794.0,93775.0,0.02133823]
[1733234253778,0.0053,93794.0,93776.0,0.56707942]
[1733234253779,0.38214025,93794.0,93776.0,0.56707942]
[1733234253976,0.053317,93780.0,93777.0,0.55307942]
[1733234254173,0.053309,93793.0,93778.0,0.55307942]
[1733234254376,0.0053,93799.0,93779.0,0.54574119]
[1733234254580,0.053316,93781.0,93780.0,0.54574119]
[1733234254784,0.3608,93785.0,93780.0,0.54574119]
[1733234255087,0.05331,93792.0,93781.0,0.54574119]
[1733234255380,0.3661,93800.0,93790.0,0.2917344]
[1733234255585,0.053309,93792.0,93791.0,0.54624278]
[1733234255785,0.414109,93792.0,93791.0,0.54624278]
[1733234255975,0.3608,93798.0,93791.0,1.21043431]
[1733234256176,0.3608,93798.0,93792.0,0.54624278]
[1733234256498,0.3608,93798.0,93782.0,0.50392407]
[1733234256499,0.053308,93794.0,93793.0,0.48744478]
[1733234256784,0.053308,93794.0,93793.0,0.37104778]
[1733234256986,0.053308,93794.0,93792.0,0.1710992]
[1733234257187,0.053308,93794.0,93792.0,2e-07]
[1733234257484,0.053321,93771.0,93769.0,0.50392407]
[1733234257684,0.053323,93769.0,93767.0,0.0001214]
[1733234258581,0.20605,93768.0,93747.0,0.05312]
[1733234258884,0.262073,93768.0,93767.0,0.05312]
[1733234259199,0.259373,93768.0,93767.0,0.05312]
[1733234259576,0.259373,93768.0,93767.0,0.05321108]
[1733234260982,0.23575845,93768.0,93767.0,0.05321108]
[1733234261187,0.20605,93768.0,93767.0,0.05321108]
[1733234261574,0.20605,93768.0,93766.0,0.053323]
[1733234261780,0.20605,93768.0,93767.0,0.05312]
[1733234262288,0.72296,93770.0,93768.0,0.053324]
[1733234262479,0.7216,93770.0,93767.0,0.13262]
[1733234262676,0.72906,93770.0,93768.0,0.00010379]
[1733234262881,0.053325,93765.0,93764.0,0.05312]
[1733234263075,0.053285,93765.0,93764.0,0.06645885]
[1733234263379,0.73034,93770.0,93764.0,0.01333874]
[1733234263581,0.053326,93764.0,93755.0,0.50720793]
[1733234263775,0.053326,93764.0,93756.0,0.66916428]
[1733234263981,0.0811,93769.0,93758.0,0.053329]
[1733234264182,0.0811,93769.0,93760.0,0.053328]
[1733234264388,0.0811,93769.0,93761.0,0.06135892]
[1733234264589,0.0811,93769.0,93762.0,0.06135892]
[1733234264779,0.00746,93770.0,93763.0,0.68908674]
[1733234264979,0.00746,93770.0,93764.0,0.6407771]
[1733234264980,0.053324,93767.0,93764.0,0.6407771]
[1733234265285,0.053324,93767.0,93765.0,0.6407771]
[1733234265488,0.053324,93767.0,93766.0,0.6407771]
[1733234265687,0.00746,93770.0,93756.0,0.36092201]
[1733234265985,0.00395621,93774.0,93769.0,0.053323]
[1733234266181,0.00259621,93774.0,93773.0,0.053321]
[1733234266382,0.00259621,93774.0,93773.0,1.15754698]
[1733234266888,0.00259621,93774.0,93773.0,1.70885762]
[1733234267592,0.05332,93774.0,93773.0,1.65553662]
[1733234267781,0.05332,93774.0,93773.0,1.60247102]
[1733234268089,0.05332,93774.0,93773.0,1.01456334]
[1733234268578,0.27056,93774.0,93773.0,1.01456334]
[1733234269592,0.05332,93774.0,93773.0,1.01456334]
[1733234269784,0.27056,93774.0,93773.0,1.01456334]
[1733234270791,0.27056,93774.0,93773.0,1.0226632]
[1733234271287,0.00715,93778.0,93773.0,1.0226632]
[1733234271492,0.00715,93778.0,93774.0,0.06116546]
[1733234271791,0.00715,93778.0,93775.0,0.07440105]
[1733234271792,0.053319,93777.0,93775.0,0.07440105]
[1733234271979,0.053319,93777.0,93776.0,0.06116546]
[1733234272184,0.053319,93777.0,93776.0,0.07443651]
[1733234272682,0.3608,93781.0,93776.0,0.02667564]
[1733234272877,0.36802,93781.0,93779.0,0.053317]
[1733234273080,0.36802,93781.0,93780.0,0.02667564]
[1733234273284,0.053312,93789.0,93780.0,0.08790103]
[1733234273487,0.00159994,93793.0,93781.0,0.08790103]
[1733234273686,0.053311,93791.0,93785.0,0.01327577]
[1733234273995,0.00724,93792.0,93790.0,0.3077344]
[1733234274201,0.00159994,93793.0,93790.0,0.3077344]
[1733234274202,0.05331,93793.0,93791.0,1.39956002]
[1733234274391,0.05331,93793.0,93792.0,1.76036002]
[1733234274693,0.02134681,93834.0,93792.0,2.65963104]
[1733234274894,0.0533,93810.0,93808.0,0.3608]
[1733234275192,0.0533,93810.0,93809.0,1.12007997]
[1733234275382,0.0533,93810.0,93809.0,1.10691342]
[1733234275585,0.17054,93816.0,93809.0,0.67391324]
[1733234275784,0.17054,93816.0,93812.0,0.51002866]
[1733234275987,0.053297,93815.0,93813.0,0.59930564]
[1733234276181,0.05341561,93819.0,93814.0,0.66057344]
[1733234276382,0.00012061,93819.0,93818.0,0.3608]
[1733234276582,0.44812,93849.0,93818.0,1.02137344]
[1733234276791,0.2172,93842.0,93835.0,0.7216]
[1733234276997,0.053284,93839.0,93835.0,1.28111975]
[1733234277187,0.3608,93868.0,93835.0,1.30778025]
[1733234277388,0.053264,93874.0,93862.0,0.3180927]
[1733234277586,0.44967865,93875.0,93853.0,0.38172749]
[1733234277587,0.053274,93856.0,93853.0,0.38172749]
[1733234277789,0.2172,93868.0,93851.0,0.3608]
[1733234278094,0.05327,93862.0,93861.0,0.304267]
[1733234278391,0.05327,93862.0,93838.0,0.00159864]
[1733234278392,0.05152751,93841.0,93838.0,0.00159864]
[1733234278694,0.053283,93840.0,93839.0,0.3608]
[1733234278881,0.3608,93853.0,93839.0,0.3608]
[1733234279086,0.39045173,93862.0,93840.0,0.06130604]
[1733234279286,0.053279,93847.0,93846.0,0.3608]
[1733234279583,0.053279,93847.0,93846.0,0.39545052]
[1733234279786,0.053279,93847.0,93846.0,0.3608]
[1733234279981,0.053279,93847.0,93846.0,0.32106189]
[1733234280387,0.053279,93847.0,93846.0,0.32106212]
[1733234280792,0.053279,93847.0,93845.0,0.25394252]
[1733234280992,0.053284,93839.0,93838.0,6.4e-07]
[1733234281191,0.053284,93839.0,93822.0,0.34829681]
[1733234281192,0.053293,93823.0,93822.0,0.34829681]
[1733234281394,0.7216,93823.0,93809.0,0.00066576]
[1733234281584,0.7216,93823.0,93809.0,0.00010576]
[1733234281585,0.4141,93810.0,93809.0,0.00010576]
[1733234281784,0.19018572,93810.0,93809.0,0.00010576]
[1733234282297,0.053303,93807.0,93776.0,0.3608]
[1733234282484,0.053303,93807.0,93768.0,0.3608]
[1733234282485,0.3608,93789.0,93777.0,0.06133451]
[1733234282682,0.053317,93781.0,93780.0,0.0027]
[1733234282886,0.053317,93781.0,93780.0,0.01333337]
[1733234282887,0.050617,93781.0,93780.0,0.01333337]
[1733234283090,0.578,93788.0,93776.0,0.3608]
[1733234283300,0.053314,93786.0,93776.0,0.3608]
[1733234283599,0.053316,93783.0,93777.0,0.00012394]
[1733234283895,0.053322,93781.0,93777.0,0.00012394]
[1733234284096,0.053323,93779.0,93777.0,0.00012394]
[1733234284799,0.2172,93784.0,93777.0,0.00012394]
[1733234285184,0.053323,93779.0,93777.0,0.00012394]
[1733234285693,0.3608,93778.0,93777.0,0.00012394]
[1733234285992,0.3608,93778.0,93761.0,0.07002348]
[1733234286192,0.414119,93778.0,93776.0,0.02134229]
[1733234286405,0.3608,93778.0,93776.0,0.02134229]
[1733234286995,0.3608,93778.0,93777.0,0.00013012]
[1733234288390,0.3608,93778.0,93754.0,0.3608]
[1733234288391,0.3608,93778.0,93743.0,0.3608]
[1733234288592,0.053332,93755.0,93750.0,0.50137527]
[1733234288787,0.053327,93763.0,93751.0,0.02134124]
[1733234288985,0.053327,93763.0,93743.0,0.3608]
[1733234288986,0.053328,93762.0,93752.0,0.48755383]
[1733234289189,0.05333,93759.0,93743.0,0.3608]
[1733234289490,0.05333,93758.0,93754.0,0.3608]
[1733234289689,0.053329,93760.0,93754.0,0.3608]
[1733234289902,0.3608,93759.0,93750.0,0.00012643]
[1733234290086,0.053333,93753.0,93750.0,0.00012643]
[1733234290395,0.414134,93751.0,93750.0,0.00012643]
[1733234290592,0.053334,93751.0,93750.0,0.00012643]
[1733234291095,0.414134,93751.0,93750.0,0.00012643]
[1733234291285,1.080214,93751.0,93750.0,0.00012643]
[1733234292197,0.053334,93749.0,93748.0,0.36508083]
[1733234292599,1.0278,93751.0,93748.0,0.36508083]
[1733234292800,0.053334,93749.0,93748.0,0.36508083]
[1733234293101,0.053334,93749.0,93748.0,0.36516753]
[1733234294900,1.0278,93751.0,93748.0,0.36516753]
[1733234295196,1.02692,93751.0,93748.0,0.31210193]
[1733234295698,0.053334,93750.0,93748.0,0.31210193]
[1733234296292,0.271414,93750.0,93748.0,0.31210193]
[1733234296715,0.053334,93750.0,93748.0,0.31210193]
[1733234296887,0.21808,93749.0,93748.0,0.31210193]
[1733234297496,0.21808,93749.0,93748.0,0.67290193]
[1733234297796,0.21812,93749.0,93748.0,0.67290193]
[1733234298197,0.44896,93751.0,93748.0,0.61983633]
[1733234298503,0.19679,93749.0,93748.0,0.61983633]
[1733234298694,0.250124,93749.0,93748.0,0.61983633]
[1733234299603,0.19679,93749.0,93748.0,0.61983633]
[1733234300190,0.001,93751.0,93749.0,0.053333]
[1733234300397,0.0027,93754.0,93748.0,0.61983633]
[1733234300398,0.0027,93754.0,93753.0,0.053331]
[1733234300592,0.4482,93775.0,93755.0,0.05333]
[1733234300593,0.0027,93759.0,93755.0,0.05333]
[1733234300792,0.05333,93757.0,93750.0,0.0985]
[1733234300998,0.25014337,93765.0,93748.0,0.62047633]
[1733234300999,0.053332,93753.0,93748.0,0.62047633]
[1733234301203,0.053332,93753.0,93748.0,0.56677073]
[1733234301502,0.0027,93760.0,93748.0,0.56677073]
[1733234301895,0.21812,93759.0,93748.0,0.56677073]
[1733234302094,0.271448,93759.0,93748.0,0.56677073]
[1733234302292,0.0027,93760.0,93748.0,0.56677073]
[1733234302493,0.02404918,93760.0,93757.0,0.3608]
[1733234302693,0.0027,93760.0,93757.0,0.3608]
[1733234302899,0.0027,93760.0,93759.0,0.053328]
[1733234303090,0.053325,93764.0,93757.0,0.3608]
[1733234303292,0.0027,93765.0,93757.0,0.3608]
[1733234303494,0.056025,93765.0,93757.0,0.3608]
[1733234303695,0.0027,93765.0,93758.0,0.053328]
[1733234303899,0.0027,93765.0,93763.0,0.053326]
[1733234304087,0.0027,93765.0,93758.0,0.154128]
[1733234304293,0.0027,93765.0,93758.0,0.11440066]
[1733234304498,0.053325,93764.0,93758.0,0.06107266]
[1733234304701,0.0027,93765.0,93758.0,0.06107266]
[1733234305104,0.0027,93765.0,93758.0,0.11440166]
[1733234305503,0.0027,93765.0,93760.0,0.053327]
[1733234305694,0.0027,93765.0,93761.0,0.053327]
[1733234306095,0.0027,93765.0,93756.0,0.3608]
[1733234306308,0.053331,93754.0,93748.0,0.20597073]
[1733234306600,0.19681621,93771.0,93748.0,0.56677073]
[1733234306601,0.3608,93767.0,93748.0,0.56677073]
[1733234306904,0.053329,93758.0,93748.0,0.56677073]
[1733234307092,0.02134471,93759.0,93751.0,0.053332]
[1733234307302,0.02134471,93759.0,93756.0,0.3077344]
[1733234307807,0.3608,93769.0,93756.0,0.3077344]
[1733234308000,0.3608,93769.0,93767.0,0.053323]
[1733234308196,0.3608,93769.0,93757.0,0.053329]
[1733234308510,0.414122,93769.0,93756.0,0.3077344]
[1733234308699,0.414122,93769.0,93750.0,0.19681621]
[1733234308901,0.414122,93769.0,93767.0,0.053323]
[1733234308902,0.3608,93769.0,93767.0,0.053323]
[1733234309107,0.3608,93769.0,93768.0,0.2]
[1733234309703,0.3608,93769.0,93759.0,0.19681621]
[1733234309909,0.3608,93769.0,93763.0,0.053326]
[1733234310100,0.3608,93769.0,93765.0,0.053325]
[1733234310296,0.3608,93769.0,93759.0,0.0998]
[1733234310802,0.3608,93769.0,93766.0,0.053324]
[1733234311002,0.3608,93769.0,93767.0,0.053324]
[1733234311723,0.3608,93769.0,93756.0,0.3608]
[1733234311913,0.3608,93769.0,93763.0,0.32044054]
[1733234312209,0.3608,93769.0,93757.0,1.08095615]
[1733234312210,0.414125,93765.0,93764.0,0.16709544]
[1733234313009,0.414125,93765.0,93748.0,0.20597073]
[1733234313010,0.43546971,93765.0,93761.0,0.31905784]
[1733234313212,0.43546971,93765.0,93748.0,0.20597073]
[1733234313213,0.38214471,93765.0,93759.0,0.31905784]
[1733234313411,0.38214471,93765.0,93750.0,0.55761621]
[1733234313618,0.3608,93769.0,93751.0,0.02134279]
[1733234313916,0.3608,93769.0,93758.0,0.3608]
[1733234314105,0.3608,93769.0,93759.0,0.02134279]
[1733234314304,0.3608,93769.0,93760.0,0.02134279]
[1733234314511,0.3608,93769.0,93759.0,0.29941621]
[1733234314512,0.053327,93762.0,93761.0,0.02134279]
[1733234314709,0.053327,93762.0,93758.0,0.3608]
[1733234315016,0.3608,93769.0,93759.0,0.6680983]
[1733234315205,0.053323,93768.0,93760.0,0.02134138]
[1733234315405,0.3608,93769.0,93767.0,0.053324]
[1733234316405,0.3608,93769.0,93759.0,0.19681621]
[1733234316406,0.3608,93769.0,93768.0,0.01333813]
[1733234316812,0.3608,93769.0,93768.0,0.07909252]
[1733234317211,0.3608,93769.0,93768.0,0.01333813]
[1733234317719,0.3608,93769.0,93768.0,0.06666113]
[1733234318516,0.3608,93769.0,93768.0,0.13246912]
[1733234318715,0.02134471,93774.0,93768.0,0.07914612]
[1733234318909,0.3608,93785.0,93780.0,0.053316]
[1733234319107,0.3608,93785.0,93784.0,0.053314]
[1733234319306,7.626e-05,93787.0,93784.0,0.053314]
[1733234319512,7.626e-05,93787.0,93776.0,0.1068]
[1733234319714,7.626e-05,93787.0,93777.0,0.65913105]
[1733234319920,7.626e-05,93787.0,93778.0,0.67246772]
[1733234320214,0.053317,93779.0,93775.0,0.3608]
[1733234320417,7.626e-05,93787.0,93776.0,0.67243853]
[1733234320418,0.053318,93777.0,93776.0,0.67243853]
[1733234320606,0.053318,93777.0,93776.0,0.07913521]
[1733234320810,0.053318,93777.0,93776.0,0.06579855]
[1733234321118,0.053322,93769.0,93767.0,0.51058866]
[1733234321310,0.414122,93769.0,93768.0,0.07914758]
[1733234321510,0.414122,93769.0,93768.0,0.01333774]
[1733234321705,0.414122,93769.0,93768.0,0.06581173]
[1733234322115,0.053329,93758.0,93757.0,0.0027]
[1733234322319,0.053329,93758.0,93757.0,0.1004912]
[1733234322507,0.053329,93758.0,93757.0,0.02608467]
[1733234323021,0.053329,93758.0,93757.0,0.61949608]
[1733234324113,0.053329,93758.0,93757.0,0.60674949]
[1733234324821,0.36172,93761.0,93757.0,0.60674949]
[1733234325011,0.00092,93761.0,93759.0,0.053328]
[1733234325210,0.0027,93772.0,93771.0,0.053321]
[1733234325419,0.0027,93772.0,93760.0,0.07868372]
[1733234325420,0.0027,93786.0,93785.0,0.053313]
[1733234325722,0.0024526,93800.0,93785.0,0.36089562]
[1733234325922,0.0024526,93800.0,93799.0,0.053305]
[1733234326108,0.0024526,93800.0,93799.0,0.06664083]
[1733234327418,0.00159975,93819.0,93800.0,0.053305]
[1733234327419,0.053298,93814.0,93800.0,0.053305]
[1733234327614,0.05489475,93819.0,93810.0,0.053299]
[1733234327810,0.00159975,93819.0,93806.0,0.3608]
[1733234328015,0.0533,93810.0,93807.0,0.01333315]
[1733234328222,0.0533,93810.0,93796.0,0.3608]
[1733234328223,0.3608,93815.0,93808.0,0.01333315]
[1733234328413,0.00159975,93819.0,93817.0,0.053295]
[1733234328613,0.00159975,93819.0,93818.0,0.053295]
[1733234328821,0.00159975,93819.0,93808.0,0.3608]
[1733234328822,0.00159975,93819.0,93812.0,0.053298]
[1733234329020,0.00159975,93819.0,93817.0,0.053296]
[1733234329212,0.00159975,93819.0,93808.0,0.3608]
[1733234329520,0.00159975,93819.0,93817.0,0.053296]
[1733234329722,0.00011066,93827.0,93826.0,0.053291]
[1733234329910,0.00159894,93841.0,93840.0,0.053283]
[1733234330312,0.00159894,93841.0,93815.0,0.80672194]
[1733234330519,0.053293,93822.0,93821.0,0.48719509]
[1733234330825,0.3608,93822.0,93792.0,0.05331]
[1733234331129,0.053304,93803.0,93794.0,0.00056]
[1733234331422,0.053304,93803.0,93793.0,1.14551302]
[1733234331423,0.3608,93801.0,93795.0,0.587084]
[1733234331620,0.3608,93801.0,93779.0,0.30933403]
[1733234331817,0.3608,93790.0,93780.0,0.56589486]
[1733234332120,0.36092377,93801.0,93781.0,0.50067391]
[1733234332309,0.414116,93782.0,93780.0,9.642e-05]
[1733234333519,0.714116,93782.0,93780.0,9.642e-05]
[1733234333827,0.6608,93782.0,93780.0,9.642e-05]
[1733234334423,0.3,93782.0,93780.0,9.642e-05]
[1733234334723,0.053317,93782.0,93781.0,0.01333646]
[1733234335215,0.3608,93786.0,93770.0,0.19681621]
[1733234335418,0.3608,93786.0,93771.0,0.01333724]
[1733234335612,0.3608,93786.0,93772.0,0.01333724]
[1733234335811,0.3608,93786.0,93773.0,0.01333688]
[1733234335812,0.3,93782.0,93773.0,0.01333688]
[1733234336022,0.3,93782.0,93772.0,0.41426136]
[1733234336023,0.3,93782.0,93774.0,0.01333688]
[1733234336221,0.3,93782.0,93772.0,0.05346136]
[1733234336523,0.3,93782.0,93772.0,0.00013736]
[1733234336918,0.3608,93786.0,93773.0,0.01333662]
[1733234337229,0.41412,93786.0,93779.0,0.19086561]
[1733234337429,0.41412,93786.0,93778.0,0.19086561]
[1733234337918,0.41412,93786.0,93777.0,0.19086561]
[1733234338120,0.3608,93778.0,93772.0,0.00013736]
[1733234338320,0.414085,93778.0,93777.0,0.19087952]
[1733234338613,0.414085,93778.0,93772.0,0.00013736]
[1733234339019,0.36076,93778.0,93772.0,0.00013736]
[1733234339725,0.66076,93778.0,93772.0,0.00013736]
[1733234341419,0.3,93778.0,93777.0,0.053329]
[1733234341620,0.05333,93774.0,93772.0,0.00013736]
[1733234341930,0.053339,93761.0,93759.0,0.19086662]
[1733234342230,0.053343,93752.0,93743.0,0.00159998]
[1733234342525,0.3608,93760.0,93743.0,0.00159998]
[1733234342526,0.3608,93749.0,93743.0,0.00159998]
[1733234342717,0.3608,93749.0,93748.0,0.20858403]
[1733234342923,0.3608,93749.0,93748.0,0.20870278]
[1733234343418,0.3608,93749.0,93748.0,0.26201278]
[1733234343829,0.414146,93749.0,93748.0,0.26201278]
[1733234344129,0.3608,93749.0,93748.0,0.26201278]
[1733234344634,0.6608,93749.0,93748.0,0.26201278]
[1733234345525,0.6608,93749.0,93748.0,0.25617352]
[1733234346022,0.87384,93749.0,93748.0,0.08887352]
[1733234346426,0.57384,93749.0,93720.0,0.05331]
[1733234346730,0.2648,93721.0,93720.0,0.106676]
[1733234347123,0.2328,93721.0,93720.0,0.106676]
[1733234347530,0.2328,93721.0,93720.0,0.10675308]
[1733234347827,0.2008,93721.0,93720.0,0.10675308]
[1733234348026,0.1368,93721.0,93720.0,0.10675308]
[1733234348221,0.34984,93721.0,93720.0,0.05338708]
[1733234348431,0.31784,93721.0,93720.0,7.708e-05]
[1733234348926,0.1048,93721.0,93720.0,7.708e-05]
[1733234349629,0.31592648,93721.0,93720.0,0.05344008]
[1733234350436,0.21112648,93721.0,93720.0,0.05344008]
[1733234351433,0.21112648,93721.0,93720.0,7.708e-05]